bitfinex-derivatives/quotes_BTCF0:USTF0_20251219
["timestamp","ask_amount","ask_price","bid_price","bid_amount"]
[1766161678508,0.02560478,88400.0,88390.0,0.0113196]
[1766161678814,0.0001697,88402.0,88387.0,0.01132]
[1766161679506,0.0113187,88398.0,88384.0,0.0001697]
[1766161679903,0.0001697,88402.0,88384.0,0.0001697]
[1766161680308,0.0001697,88402.0,88385.0,0.0113203]
[1766161680709,0.0001697,88402.0,88384.0,0.0001697]
[1766161681107,0.011312,88451.0,88384.0,0.0001697]
[1766161681108,1.4438,88432.0,88392.0,0.0113194]
[1766161681408,0.02563733,88431.0,88412.0,0.0113168]
[1766161681613,0.03695193,88430.0,88408.0,0.0113173]
[1766161681804,0.00568,88431.0,88406.0,0.00568]
[1766161681805,0.02563733,88429.0,88406.0,0.00568]
[1766161682004,0.02563733,88428.0,88413.0,0.0113167]
[1766161682205,0.02563733,88427.0,88410.0,0.0113171]
[1766161682402,0.02563733,88426.0,88410.0,0.0113171]
[1766161682606,0.02563733,88425.0,88410.0,0.0113171]
[1766161682814,0.02563733,88424.0,88410.0,0.0113171]
[1766161683015,0.0113102,88464.0,88411.0,1.44372]
[1766161683205,0.02561586,88446.0,88428.0,0.0113148]
[1766161683402,0.02561586,88445.0,88428.0,0.00568]
[1766161683608,0.0113131,88441.0,88428.0,0.00568]
[1766161683916,0.03129586,88440.0,88418.0,0.00444]
[1766161684102,0.03129586,88439.0,88420.0,0.0001696]
[1766161684309,0.0058496,88438.0,88420.0,0.0001696]
[1766161684509,0.0113139,88435.0,88420.0,0.0001696]
[1766161684709,0.0058496,88438.0,88420.0,0.0001696]
[1766161684911,0.0058496,88438.0,88418.0,0.00444]
[1766161685212,0.0058496,88438.0,88415.0,0.00072]
[1766161685513,0.0113142,88433.0,88415.0,0.00072]
[1766161686019,0.0001696,88438.0,88415.0,0.0008896]
[1766161686914,0.00568,88445.0,88430.0,0.0113145]
[1766161687111,0.00568,88445.0,88428.0,0.00568]
[1766161687312,0.0113125,88447.0,88428.0,0.00568]
[1766161688020,0.0001696,88446.0,88428.0,0.00568]
[1766161688909,0.0001696,88446.0,88428.0,0.0169948]
[1766161689216,0.0001696,88446.0,88430.0,0.0113145]
[1766161689717,0.0001696,88446.0,88428.0,0.00568]
[1766161690305,0.0001696,88446.0,88429.0,0.0113147]
[1766161691216,0.0001696,88446.0,88428.0,0.0169947]
[1766161692320,0.0114822,88446.0,88428.0,0.0169947]
[1766161692519,0.0114822,88446.0,88428.0,0.00568]
[1766161693120,0.0114822,88446.0,88429.0,0.0113146]
[1766161693518,0.0113136,88438.0,88415.0,0.0001696]
[1766161693720,0.0113136,88438.0,88419.0,0.0113159]
[1766161693921,0.0113139,88436.0,88416.0,0.0169963]
[1766161694424,0.0143131,88442.0,88422.0,0.0113155]
[1766161694619,0.003,88442.0,88428.0,0.0113147]
[1766161694827,0.0001696,88446.0,88430.0,0.0113145]
[1766161695433,0.0001696,88446.0,88428.0,0.00548]
[1766161695623,0.0001696,88446.0,88429.0,0.0113146]
[1766161696924,0.0001696,88446.0,88431.0,0.0113144]
[1766161697318,0.0001696,88446.0,88428.0,0.00548]
[1766161698323,0.0001696,88446.0,88429.0,0.0113146]
[1766161698523,0.0113126,88445.0,88429.0,0.0113146]
[1766161699024,0.0113094,88471.0,88440.0,0.0113132]
[1766161699328,0.0113106,88461.0,88441.0,0.0113131]
[1766161699919,0.0113109,88459.0,88442.0,0.0001696]
[1766161700120,0.0113112,88457.0,88442.0,0.0001696]
[1766161700324,0.01142368,88460.0,88442.0,0.0001696]
[1766161700531,0.00011288,88460.0,88443.0,0.0113129]
[1766161701234,0.00011288,88460.0,88445.0,0.0113126]
[1766161701621,0.00011288,88460.0,88442.0,0.0001696]
[1766161703234,0.00011288,88460.0,88420.0,0.41081735]
[1766161703235,0.011312,88450.0,88441.0,0.00252]
[1766161703427,0.011312,88450.0,88437.0,0.00568]
[1766161703727,0.0113109,88459.0,88410.0,0.41081735]
[1766161703930,0.0113109,88459.0,88398.0,0.0113186]
[1766161703931,0.0113138,88436.0,88418.0,0.011316]
[1766161704129,0.0113138,88436.0,88418.0,0.0114856]
[1766161704130,0.0114834,88436.0,88418.0,0.0114856]
[1766161704723,0.0114834,88436.0,88420.0,0.0113158]
[1766161705230,0.0113144,88432.0,88418.0,0.0001696]
[1766161705434,0.0001696,88436.0,88418.0,0.0001696]
[1766161706229,0.0113142,88433.0,88418.0,0.0001696]
[1766161706736,0.0113133,88440.0,88422.0,0.0113156]
[1766161706937,0.00568,88448.0,88419.0,0.0113159]
[1766161707133,0.02548678,88447.0,88419.0,0.0113159]
[1766161707332,0.02548678,88446.0,88419.0,0.0113159]
[1766161707528,0.02548678,88445.0,88419.0,0.0113159]
[1766161707839,0.0113136,88438.0,88421.0,0.0113156]
[1766161708528,0.00011288,88441.0,88418.0,0.0001696]
[1766161708727,0.0113134,88439.0,88421.0,0.0113156]
[1766161708926,0.0113137,88437.0,88418.0,0.0114856]
[1766161709835,0.0113137,88437.0,88420.0,0.0113158]
[1766161710445,0.0113133,88440.0,88422.0,0.0113155]
[1766161710840,0.0113136,88438.0,88419.0,0.0113159]
[1766161711139,0.0113139,88436.0,88419.0,0.0113159]
[1766161711337,0.0113137,88437.0,88419.0,0.0113159]
[1766161711538,0.011314,88435.0,88418.0,0.0001696]
[1766161711724,0.00011288,88441.0,88418.0,0.0001696]
[1766161711933,0.08088784,88504.0,88431.0,0.42213175]
[1766161712229,0.0113059,88498.0,88455.0,0.0113112]
[1766161712430,0.0113079,88483.0,88456.0,0.00568]
[1766161712629,0.0113084,88478.0,88460.0,0.0113106]
[1766161712830,0.0113088,88476.0,88460.0,0.0001696]
[1766161713032,0.0113077,88484.0,88460.0,0.0001696]
[1766161713232,0.0036,88489.0,88460.0,0.0001696]
[1766161713233,0.0113093,88472.0,88460.0,0.0001696]
[1766161713433,0.0113093,88472.0,88461.0,0.00172]
[1766161713626,0.0113088,88476.0,88461.0,0.00172]
[1766161716330,0.0113076,88485.0,88461.0,0.00172]
[1766161716542,0.03598322,88484.0,88460.0,0.0001696]
[1766161716736,0.0113094,88471.0,88449.0,0.0113121]
[1766161716938,0.0113094,88471.0,88450.0,0.00568]
[1766161717237,0.0113089,88474.0,88451.0,0.0113118]
[1766161717542,0.0113093,88472.0,88451.0,0.0113118]
[1766161717843,0.0001696,88470.0,88454.0,0.0113114]
[1766161718240,0.0001696,88470.0,88453.0,0.0001696]
[1766161718640,0.0114791,88470.0,88453.0,0.0001696]
[1766161719143,0.0001696,88470.0,88453.0,0.0001696]
[1766161719336,0.0001696,88470.0,88453.0,0.0058496]
[1766161721246,0.0113096,88469.0,88453.0,0.0058496]
[1766161721442,0.0114791,88470.0,88453.0,0.0058496]
[1766161721644,0.0113098,88468.0,88453.0,0.0058496]
[1766161722036,0.0001696,88470.0,88453.0,0.0058496]
[1766161722244,0.0001696,88470.0,88454.0,0.0113115]
[1766161722443,0.0001696,88470.0,88453.0,0.0058496]
[1766161722635,0.0114791,88470.0,88453.0,0.0058496]
[1766161723647,0.0001696,88470.0,88453.0,0.0058496]
[1766161723848,0.0001696,88470.0,88453.0,0.0001696]
[1766161724148,0.0001696,88470.0,88454.0,0.00288]
[1766161724149,0.01131,88466.0,88454.0,0.00288]
[1766161724939,0.0113099,88467.0,88454.0,0.00288]
[1766161725739,0.0114791,88470.0,88454.0,0.00288]
[1766161725940,0.0001696,88470.0,88454.0,0.00288]
[1766161726136,0.0113079,88482.0,88464.0,0.0113101]
[1766161726639,0.0113082,88480.0,88461.0,0.0113105]
[1766161726836,0.00252,88485.0,88455.0,0.0113113]
[1766161727040,0.0113092,88472.0,88454.0,0.0141914]
[1766161727241,0.00252,88485.0,88454.0,0.00288]
[1766161727436,0.0113098,88468.0,88454.0,0.00288]
[1766161727649,0.00252,88485.0,88455.0,0.00568]
[1766161727947,0.0113096,88469.0,88455.0,0.00568]
[1766161728446,0.0113099,88467.0,88455.0,0.00568]
[1766161729046,0.0113099,88467.0,88456.0,0.00568]
[1766161729248,0.00252,88485.0,88456.0,0.00568]
[1766161729436,0.0113089,88474.0,88456.0,0.0169911]
[1766161729953,0.0113092,88472.0,88456.0,0.0169911]
[1766161730456,0.01131,88466.0,88453.0,0.0001696]
[1766161730754,0.0113078,88483.0,88454.0,0.00568]
[1766161730945,0.0113093,88472.0,88454.0,0.0169915]
[1766161732054,0.00252,88485.0,88461.0,0.0113105]
[1766161732359,0.0113084,88479.0,88463.0,0.0113103]
[1766161732542,0.00252,88485.0,88455.0,0.0113113]
[1766161732852,0.00252,88485.0,88453.0,0.0001696]
[1766161732853,0.00252,88485.0,88463.0,0.0113103]
[1766161733045,0.0113081,88481.0,88456.0,0.00568]
[1766161733445,0.00252,88485.0,88460.0,0.0113107]
[1766161733647,0.0113084,88479.0,88462.0,0.0113104]
[1766161734054,0.0113084,88479.0,88464.0,0.0113102]
[1766161734252,0.011308,88482.0,88464.0,0.0113102]
[1766161734544,0.00252,88485.0,88453.0,0.0001696]
[1766161734545,0.00252,88485.0,88465.0,0.00568]
[1766161734744,0.0008,88493.0,88470.0,0.0113094]
[1766161734955,0.0113071,88489.0,88473.0,0.0001696]
[1766161735155,0.011307,88490.0,88473.0,0.0001696]
[1766161735454,0.0113072,88488.0,88473.0,0.0001696]
[1766161735657,0.0113068,88491.0,88474.0,0.0113089]
[1766161736154,0.0008,88493.0,88473.0,0.0001696]
[1766161736155,0.0113076,88485.0,88473.0,0.0001696]
[1766161736344,0.0113072,88488.0,88473.0,0.0001696]
[1766161737252,0.0113071,88489.0,88473.0,0.0001696]
[1766161737659,0.0113071,88489.0,88473.0,0.0114786]
[1766161737961,0.0008,88493.0,88473.0,0.0001696]
[1766161738150,0.0113073,88488.0,88473.0,0.0001696]
[1766161738562,0.0121065,88493.0,88473.0,0.0001696]
[1766161738763,0.0113076,88485.0,88473.0,0.0001696]
[1766161738964,0.0113078,88483.0,88473.0,0.0001696]
[1766161739166,0.0113071,88489.0,88473.0,0.0114786]
[1766161740566,0.0008,88493.0,88473.0,0.0001696]
[1766161740767,0.02428704,88492.0,88473.0,0.0114786]
[1766161740963,0.02428704,88491.0,88473.0,0.0114786]
[1766161741159,0.02428704,88490.0,88473.0,0.0001696]
[1766161741362,0.02428704,88489.0,88473.0,0.0001696]
[1766161741567,0.0113082,88480.0,88471.0,0.00568]
[1766161741766,0.0113082,88480.0,88464.0,0.0113102]
[1766161741962,0.0113082,88480.0,88465.0,0.00568]
[1766161742169,0.0113077,88484.0,88468.0,0.0113096]
[1766161742469,0.0001696,88485.0,88470.0,0.0113094]
[1766161742659,0.0113079,88482.0,88467.0,0.0114794]
[1766161743060,0.0001696,88485.0,88467.0,0.0001696]
[1766161743265,0.0001696,88485.0,88470.0,0.0113094]
[1766161744064,0.0001696,88485.0,88470.0,0.27971833]
[1766161744367,0.00564,88501.0,88470.0,0.27971833]
[1766161744368,0.0113064,88494.0,88475.0,0.0113087]
[1766161744564,0.02430602,88493.0,88477.0,0.0113085]
[1766161744769,0.02430602,88492.0,88477.0,0.0113085]
[1766161744958,0.00564,88501.0,88476.0,0.00568]
[1766161745154,0.0113066,88493.0,88476.0,0.00568]
[1766161745370,0.0113061,88496.0,88476.0,0.0169886]
[1766161745568,0.02430302,88495.0,88476.0,0.0169886]
[1766161745754,0.02430302,88494.0,88476.0,0.0169886]
[1766161745958,0.0113048,88507.0,88484.0,0.27971833]
[1766161746165,0.0113048,88507.0,88487.0,0.0001695]
[1766161746365,0.0113051,88505.0,88488.0,0.011307]
[1766161746755,0.0113051,88505.0,88487.0,0.0001695]
[1766161746960,0.0113051,88505.0,88487.0,0.0114767]
[1766161747360,0.0113046,88508.0,88489.0,0.011307]
[1766161747562,0.0036,88517.0,88489.0,0.011307]
[1766161747770,0.02427404,88516.0,88489.0,0.011307]
[1766161748071,0.02427404,88515.0,88489.0,0.011307]
[1766161748263,0.02427404,88514.0,88489.0,0.011307]
[1766161748567,0.0113049,88506.0,88489.0,0.011307]
[1766161749157,0.011305,88505.0,88487.0,0.0114767]
[1766161751961,0.011305,88505.0,88489.0,0.0113069]
[1766161752368,0.011305,88505.0,88487.0,0.0001695]
[1766161752568,0.011305,88505.0,88488.0,0.0113071]
[1766161752767,0.0036,88517.0,88490.0,0.0113068]
[1766161752963,0.0113042,88511.0,88494.0,0.0113063]
[1766161753170,0.0113042,88511.0,88495.0,0.00404]
[1766161753372,0.0036,88517.0,88495.0,0.00404]
[1766161753568,0.02424374,88516.0,88495.0,0.00404]
[1766161753767,0.02424374,88515.0,88499.0,0.0113057]
[1766161753981,0.0113037,88515.0,88500.0,0.00568]
[1766161754276,0.011304,88513.0,88500.0,0.00568]
[1766161754477,0.0113036,88516.0,88500.0,0.00568]
[1766161754870,0.0113042,88512.0,88500.0,0.00568]
[1766161755175,0.00568,88527.0,88500.0,0.28539833]
[1766161755382,0.0242347,88526.0,88500.0,0.00568]
[1766161755572,0.0113038,88515.0,88500.0,0.00568]
[1766161755882,0.0113033,88518.0,88501.0,0.00568]
[1766161756071,0.0113043,88511.0,88501.0,0.0001695]
[1766161756271,0.0113024,88526.0,88501.0,0.0001695]
[1766161756272,0.0113038,88514.0,88501.0,0.0018895]
[1766161756775,0.0113042,88512.0,88501.0,0.0018895]
[1766161756969,0.011304,88513.0,88501.0,0.0018895]
[1766161757179,0.011304,88513.0,88502.0,0.00256]
[1766161757985,0.00568,88527.0,88502.0,0.00256]
[1766161758275,0.0113045,88509.0,88501.0,0.00088]
[1766161758864,0.0113024,88525.0,88501.0,0.00088]
[1766161759065,0.0113048,88507.0,88504.0,0.0001695]
[1766161759266,0.0113048,88507.0,88501.0,0.00088]
[1766161759490,0.0113044,88510.0,88501.0,0.00088]
[1766161759782,0.011304,88513.0,88501.0,0.00088]
[1766161759973,0.0113043,88511.0,88501.0,0.00088]
[1766161760174,0.0113041,88512.0,88501.0,0.00088]
[1766161760577,0.0113041,88512.0,88497.0,0.0001695]
[1766161760775,0.0113041,88512.0,88498.0,0.00568]
[1766161761279,0.00016917,88522.0,88505.0,0.0113049]
[1766161761487,0.00016917,88522.0,88507.0,0.0113046]
[1766161761780,0.00016917,88522.0,88509.0,0.0113044]
[1766161762279,0.00016917,88522.0,88513.0,0.0113039]
[1766161762474,0.00016917,88522.0,88508.0,0.00568]
[1766161763584,0.00016917,88522.0,88509.0,0.00568]
[1766161764480,0.00016917,88522.0,88500.0,0.27971833]
[1766161764677,0.00016917,88522.0,88506.0,0.0113047]
[1766161764989,0.00016917,88522.0,88501.0,0.00568]
[1766161765672,0.0113045,88509.0,88497.0,0.0001695]
[1766161765878,0.0113045,88509.0,88498.0,0.00172]
[1766161766275,0.0113048,88507.0,88498.0,0.00172]
[1766161766478,0.0113043,88510.0,88498.0,0.00172]
[1766161767182,0.0113043,88510.0,88497.0,0.0001695]
[1766161767387,0.0113043,88510.0,88498.0,0.00156]
[1766161768083,0.0113047,88507.0,88498.0,0.00156]
[1766161769876,0.0113059,88499.0,88490.0,0.00568]
[1766161771070,0.0113054,88502.0,88490.0,0.00568]
[1766161771779,0.0001695,88503.0,88490.0,0.00568]
[1766161773086,0.0114748,88503.0,88462.0,0.06038661]
[1766161773288,0.0113061,88497.0,88479.0,0.0113082]
[1766161773778,0.0113063,88495.0,88479.0,0.0113082]
[1766161773985,0.0169863,88495.0,88476.0,0.0113087]
[1766161774182,0.0169863,88495.0,88478.0,0.0114778]
[1766161774386,0.00568,88495.0,88480.0,0.0113081]
[1766161774586,0.0169863,88495.0,88478.0,0.0001695]
[1766161774987,0.0169863,88495.0,88479.0,0.0113083]
[1766161775783,0.00568,88495.0,88479.0,0.0113083]
[1766161775998,0.00568,88495.0,88478.0,0.0001695]
[1766161776186,0.0001695,88503.0,88478.0,0.0001695]
[1766161776391,0.02882979,88502.0,88479.0,0.00568]
[1766161776594,0.0001695,88503.0,88491.0,0.0113067]
[1766161778381,0.0001695,88503.0,88493.0,0.0113064]
[1766161778692,0.0001695,88503.0,88490.0,0.0113068]
[1766161779079,0.0001695,88503.0,88494.0,0.0113063]
[1766161779296,0.0001695,88503.0,88490.0,0.0113068]
[1766161780192,0.0001695,88503.0,88487.0,0.0113072]
[1766161780389,0.0001695,88503.0,88490.0,0.0113068]
[1766161780993,0.0001695,88503.0,88492.0,0.0113066]
[1766161782379,0.0001695,88503.0,88494.0,0.0113062]
[1766161783293,0.0001695,88503.0,88489.0,0.0113069]
[1766161784293,0.0113054,88502.0,88486.0,0.0113073]
[1766161784490,0.0001695,88503.0,88480.0,0.0113081]
[1766161784491,0.0113059,88498.0,88480.0,0.0113081]
[1766161784690,0.0001695,88503.0,88479.0,0.0113082]
[1766161784893,0.0113058,88499.0,88481.0,0.011308]
[1766161785193,0.011306,88497.0,88481.0,0.011308]
[1766161785388,0.0001695,88503.0,88478.0,0.0001695]
[1766161785389,0.0113069,88490.0,88478.0,0.0001695]
[1766161785594,0.0113069,88490.0,88478.0,0.0058495]
[1766161785895,0.00568,88495.0,88478.0,1e-07]
[1766161786096,0.0169863,88495.0,88478.0,1e-07]
[1766161786299,0.0113077,88484.0,88478.0,1e-07]
[1766161786797,0.0113079,88482.0,88478.0,1e-07]
[1766161787196,0.0113078,88483.0,88478.0,1e-07]
[1766161788093,0.0113075,88486.0,88478.0,1e-07]
[1766161788289,0.0113077,88484.0,88478.0,1e-07]
[1766161789598,0.0113076,88485.0,88478.0,1e-07]
[1766161790092,0.0113078,88483.0,88478.0,1e-07]
[1766161790694,0.00568,88486.0,88478.0,1e-07]
[1766161790695,0.0169875,88486.0,88478.0,1e-07]
[1766161791095,0.00568,88486.0,88478.0,1e-07]
[1766161792199,0.0169874,88486.0,88478.0,1e-07]
[1766161792404,0.00568,88486.0,88478.0,1e-07]
[1766161795103,0.0113075,88485.0,88478.0,1e-07]
[1766161795503,0.00568,88486.0,88470.0,0.22378878]
[1766161795699,0.0169874,88486.0,88470.0,0.23509808]
[1766161796105,0.00568,88486.0,88470.0,0.22378878]
[1766161796306,0.00568,88486.0,88471.0,0.0113092]
[1766161796606,0.00568,88486.0,88470.0,0.22395828]
[1766161796805,0.0113078,88483.0,88470.0,0.22395828]
[1766161797304,0.0169874,88486.0,88472.0,0.0113091]
[1766161797607,0.00568,88486.0,88474.0,0.0113089]
[1766161797908,0.0113075,88485.0,88471.0,0.0113093]
[1766161798097,0.00568,88486.0,88471.0,0.0113093]
[1766161798296,0.00568,88486.0,88470.0,0.22395828]
[1766161798297,0.0113078,88483.0,88470.0,0.0001695]
[1766161798493,0.0113082,88480.0,88470.0,0.0001695]
[1766161798710,0.0113082,88480.0,88456.0,1.4534712]
[1766161798711,0.011309,88474.0,88460.0,0.00096]
[1766161798896,0.0113091,88473.0,88457.0,0.00048]
[1766161799095,0.0113091,88473.0,88458.0,0.0113109]
[1766161799293,0.0113091,88473.0,88457.0,0.00048]
[1766161799598,0.0113091,88473.0,88457.0,0.011791]
[1766161799792,0.00011352,88472.0,88457.0,0.00048]
[1766161800605,0.00011352,88472.0,88456.0,0.00011331]
[1766161800606,1.1e-06,88457.0,88456.0,1e-08]
[1766161800800,0.0113119,88452.0,88430.0,0.23510328]
[1766161800997,0.0113114,88455.0,88435.0,0.0113139]
[1766161801201,0.0056811,88457.0,88422.0,0.0113155]
[1766161801202,0.0113112,88456.0,88440.0,0.22378878]
[1766161801505,0.0113112,88456.0,88436.0,0.0113137]
[1766161801703,0.0001696,88455.0,88440.0,0.22378878]
[1766161802603,0.0001696,88455.0,88441.0,0.0113131]
[1766161802806,0.0016,88454.0,88403.0,0.08085041]
[1766161803106,0.011315,88427.0,88402.0,0.0113181]
[1766161803405,0.0001696,88423.0,88410.0,0.28009671]
[1766161803595,0.00024,88431.0,88411.0,0.00568]
[1766161803802,0.0113122,88449.0,88423.0,0.0113154]
[1766161804003,0.00568,88450.0,88424.0,0.00568]
[1766161804004,0.0113126,88446.0,88424.0,0.00568]
[1766161804204,8.912e-05,88448.0,88424.0,0.0169953]
[1766161804408,8.912e-05,88448.0,88427.0,0.0113149]
[1766161804409,0.01140142,88448.0,88427.0,0.0113149]
[1766161804710,0.0001696,88446.0,88429.0,0.0001696]
[1766161805103,0.0001696,88446.0,88430.0,0.0113145]
[1766161805306,0.0001696,88446.0,88431.0,0.00252]
[1766161805617,0.0001696,88446.0,88435.0,0.0113139]
[1766161806106,0.0001696,88446.0,88431.0,0.00252]
[1766161806107,1.1e-06,88457.0,88455.0,0.0113113]
[1766161806308,1.44248,88493.0,88455.0,0.0113113]
[1766161806497,1.44248,88493.0,88451.0,0.0169918]
[1766161806498,0.0113088,88475.0,88451.0,0.0169918]
[1766161806697,0.0113088,88475.0,88454.0,0.0113115]
[1766161806897,0.0113094,88471.0,88451.0,0.00568]
[1766161807113,0.0113098,88468.0,88452.0,0.0055696]
[1766161807298,0.00029461,88470.0,88452.0,0.0055696]
[1766161807807,0.00029461,88470.0,88458.0,0.0113108]
[1766161808195,0.00029461,88470.0,88454.0,0.0113114]
[1766161808909,0.00029461,88470.0,88460.0,0.0113107]
[1766161809111,0.00029461,88470.0,88456.0,0.0113111]
[1766161810203,0.00029461,88470.0,88452.0,0.0168812]
[1766161811108,0.00029461,88470.0,88452.0,0.0055696]
[1766161811608,0.00029461,88470.0,88453.0,0.0113116]
[1766161811804,0.00029461,88470.0,88452.0,0.0055696]
[1766161811805,0.01160411,88470.0,88452.0,0.0055696]
[1766161812002,0.00029461,88470.0,88452.0,0.0168812]
[1766161812198,0.00029461,88470.0,88456.0,0.0113112]
[1766161814096,0.0113077,88484.0,88463.0,0.0113103]
[1766161814303,1.44252,88505.0,88475.0,0.0113088]
[1766161814604,0.0113062,88496.0,88475.0,0.0113088]
[1766161814801,0.0113064,88494.0,88475.0,0.0113088]
[1766161815010,0.0168264,88494.0,88475.0,0.0113088]
[1766161815209,0.02528526,88493.0,88476.0,0.0001696]
[1766161815405,0.01134272,88517.0,88476.0,0.0001696]
[1766161815610,0.01134272,88517.0,88480.0,0.41036268]
[1766161815611,0.0113043,88510.0,88480.0,0.41036268]
[1766161815801,0.02511272,88509.0,88476.0,0.0001696]
[1766161816000,0.02511272,88508.0,88476.0,0.0001696]
[1766161816200,0.0113043,88510.0,88476.0,0.0001696]
[1766161816402,0.0001695,88502.0,88476.0,0.0001696]
[1766161816796,0.0114749,88502.0,88481.0,0.0113079]
[1766161816997,0.0114749,88502.0,88482.0,0.0012]
[1766161817196,0.0001695,88502.0,88482.0,0.0012]
[1766161817398,0.0113043,88511.0,88488.0,0.0113071]
[1766161817601,0.0113046,88509.0,88484.0,0.0113075]
[1766161817903,1.50568,88516.0,88482.0,0.0012]
[1766161818111,0.0113037,88515.0,88482.0,0.0012]
[1766161818297,0.0001695,88507.0,88482.0,0.0012]
[1766161818699,0.0001695,88507.0,88493.0,0.0113064]
[1766161818913,0.00568,88516.0,88493.0,0.0113064]
[1766161818914,0.00568,88516.0,88493.0,0.00568]
[1766161819114,0.00568,88516.0,88499.0,0.0113056]
[1766161820118,0.00011257,88516.0,88499.0,0.0001695]
[1766161820315,0.00011257,88516.0,88499.0,0.0114751]
[1766161820524,0.00011257,88516.0,88506.0,0.0113047]
[1766161820812,0.00568,88531.0,88505.0,0.00568]
[1766161821004,0.0113019,88530.0,88506.0,0.0113048]
[1766161821204,0.0113019,88530.0,88509.0,0.0113044]
[1766161821406,0.00568,88531.0,88505.0,0.00568]
[1766161821616,0.00568,88531.0,88511.0,0.0113042]
[1766161821915,0.0113018,88530.0,88511.0,0.0113042]
[1766161822118,0.0113022,88527.0,88507.0,0.0113046]
[1766161822310,0.0113021,88528.0,88507.0,0.0113046]
[1766161822507,0.0054,88539.0,88523.0,0.0113027]
[1766161822712,0.0113,88545.0,88524.0,0.00568]
[1766161822901,0.00568,88549.0,88524.0,0.00568]
[1766161823110,0.00568,88549.0,88522.0,0.0001695]
[1766161823111,0.0113009,88537.0,88525.0,0.00188]
[1766161823507,0.0113013,88534.0,88525.0,0.00188]
[1766161823708,0.00568,88549.0,88525.0,0.00188]
[1766161824010,0.0113009,88538.0,88525.0,0.00188]
[1766161824404,0.0113014,88534.0,88525.0,0.00188]
[1766161824819,0.0113009,88538.0,88525.0,0.00188]
[1766161825019,0.00568,88549.0,88525.0,0.00188]
[1766161825813,0.0112997,88547.0,88525.0,0.00188]
[1766161826012,0.0112992,88551.0,88525.0,0.00188]
[1766161826209,0.0113008,88538.0,88526.0,0.00568]
[1766161826411,0.0160989,88553.0,88526.0,0.00568]
[1766161826621,0.0048,88553.0,88526.0,0.0169822]
[1766161826811,0.0048,88553.0,88522.0,0.0001695]
[1766161826812,0.0113001,88543.0,88527.0,0.00568]
[1766161827014,0.0048,88553.0,88527.0,0.00568]
[1766161827316,0.0113,88544.0,88527.0,0.00568]
[1766161827524,0.0112999,88545.0,88527.0,0.00568]
[1766161827725,0.00568,88555.0,88527.0,0.016982]
[1766161827924,0.0112998,88546.0,88527.0,0.00568]
[1766161828108,0.0113001,88543.0,88527.0,0.00568]
[1766161828716,0.00568,88555.0,88522.0,0.0001695]
[1766161828717,0.0113008,88538.0,88522.0,0.0001695]
[1766161828913,0.0112972,88567.0,88528.0,0.41036268]
[1766161829123,0.00216,88577.0,88540.0,0.42166318]
[1766161829423,0.011298,88560.0,88541.0,0.00568]
[1766161829623,0.011299,88552.0,88539.0,0.0001694]
[1766161829814,0.00304,88562.0,88540.0,0.00172]
[1766161830014,0.0112986,88555.0,88540.0,0.00172]
[1766161830210,0.0056,88561.0,88539.0,0.0001694]
[1766161830537,0.0112999,88545.0,88536.0,0.00188]
[1766161830718,0.0112999,88545.0,88535.0,0.00568]
[1766161830917,0.0113002,88543.0,88535.0,0.00568]
[1766161831323,0.0113,88544.0,88535.0,0.00568]
[1766161831723,0.00016908,88548.0,88532.0,0.00568]
[1766161831923,0.0112998,88546.0,88531.0,0.0001694]
[1766161832313,0.00016908,88548.0,88531.0,0.0001694]
[1766161832630,0.0113005,88541.0,88531.0,0.0001694]
[1766161833325,0.0112999,88545.0,88517.0,1.44164]
[1766161833529,0.00016908,88548.0,88533.0,0.0113013]
[1766161833825,0.0112978,88561.0,88542.0,0.0113001]
[1766161834017,0.0112978,88561.0,88543.0,0.0056]
[1766161834420,0.0112987,88555.0,88543.0,0.0056]
[1766161834620,0.0112982,88558.0,88543.0,0.0056]
[1766161834815,0.00172,88564.0,88543.0,0.0056]
[1766161834816,0.0001694,88559.0,88543.0,0.0056]
[1766161836232,0.0112983,88558.0,88543.0,0.0056]
[1766161836735,0.0001694,88559.0,88549.0,0.0112993]
[1766161837033,0.00172,88564.0,88543.0,0.0056]
[1766161837227,0.0112963,88574.0,88543.0,0.0056]
[1766161837441,0.0112962,88574.0,88555.0,0.0112986]
[1766161837727,0.0112966,88571.0,88556.0,0.00568]
[1766161837926,0.0112972,88567.0,88556.0,0.0028]
[1766161838120,0.0112974,88564.0,88556.0,0.0028]
[1766161838625,0.0112977,88562.0,88541.0,0.0113003]
[1766161838929,0.00304,88577.0,88542.0,1.44712]
[1766161839133,0.0112959,88576.0,88542.0,1.44712]
[1766161839337,0.0112959,88576.0,88544.0,0.0113]
[1766161839628,0.0112959,88576.0,88551.0,0.0001694]
[1766161839629,0.011298,88560.0,88551.0,0.0001694]
[1766161840025,0.011298,88560.0,88552.0,0.00568]
[1766161840227,0.011298,88560.0,88553.0,0.00568]
[1766161840537,0.0001694,88569.0,88554.0,0.00568]
[1766161840538,0.0112983,88558.0,88554.0,0.00568]
[1766161840826,0.0112969,88568.0,88538.0,1.44136]
[1766161841030,0.0112969,88568.0,88539.0,0.00568]
[1766161841226,0.0112978,88561.0,88540.0,0.0113005]
[1766161841415,0.0112959,88576.0,88540.0,0.0113005]
[1766161841618,0.02551614,88575.0,88540.0,0.0113005]
[1766161841814,0.0112981,88559.0,88549.0,0.0001694]
[1766161842020,0.0112981,88559.0,88550.0,0.004]
[1766161842219,0.0112987,88555.0,88551.0,0.00568]
[1766161842424,0.0112989,88553.0,88549.0,0.0058494]
[1766161842625,0.0112992,88550.0,88535.0,1.44132]
[1766161842825,0.0112992,88550.0,88536.0,0.00568]
[1766161843431,0.0056,88564.0,88526.0,0.0113022]
[1766161843631,0.0112993,88550.0,88533.0,0.0001694]
[1766161844032,0.0112993,88550.0,88534.0,0.00568]
[1766161844329,0.0001694,88551.0,88534.0,0.00568]
[1766161844534,0.0112971,88567.0,88547.0,0.0112995]
[1766161844731,0.0112973,88565.0,88548.0,0.00568]
[1766161845035,0.0112969,88568.0,88549.0,0.0112993]
[1766161845531,0.0112975,88564.0,88550.0,0.0001694]
[1766161846327,0.0112978,88562.0,88550.0,0.0001694]
[1766161846631,0.0112983,88558.0,88550.0,0.0001694]
[1766161846930,0.0001694,88567.0,88511.0,0.0113041]
[1766161847131,0.02560584,88566.0,88530.0,0.42166438]
[1766161847334,0.0112995,88549.0,88531.0,1.4412]
[1766161847524,0.0112995,88549.0,88532.0,0.00568]
[1766161847831,0.0114689,88549.0,88532.0,0.0058494]
[1766161848922,0.0001694,88549.0,88533.0,1.4581813]
[1766161849130,0.0112995,88548.0,88533.0,1.44688]
[1766161849522,0.0001694,88549.0,88532.0,0.0001694]
[1766161850023,0.0001694,88549.0,88533.0,0.00172]
[1766161850226,0.0036,88571.0,88533.0,0.00172]